bitfinex/quotes_BTCUSD_20220120
["timestamp","ask_amount","ask_price","bid_price","bid_amount"]
[1642676029868,0.24427372,42086.0,42083.0,0.05]
[1642676030068,0.25127372,42086.0,42083.0,0.05]
[1642676030668,0.24947134,42086.0,42083.0,0.05]
[1642676031314,0.24247134,42086.0,42083.0,0.05]
[1642676032116,0.25047134,42086.0,42083.0,0.056]
[1642676033216,0.24247134,42086.0,42083.0,0.05]
[1642676034125,0.24947134,42086.0,42083.0,0.056]
[1642676034922,0.007,42086.0,42083.0,0.056]
[1642676035176,0.007,42086.0,42083.0,0.05]
[1642676035376,0.04798595,42088.0,42083.0,0.05]
[1642676035575,0.04798595,42088.0,42082.0,0.059424]
[1642676035782,0.077251,42087.0,42082.0,0.059424]
[1642676035978,6.876e-05,42087.0,42085.0,0.30700442]
[1642676036178,0.007,42088.0,42085.0,0.30700442]
[1642676036578,6.876e-05,42087.0,42085.0,0.30700442]
[1642676036782,0.07739772,42087.0,42085.0,0.05]
[1642676036979,6.876e-05,42087.0,42083.0,0.006]
[1642676037178,6.876e-05,42087.0,42085.0,0.059419]
[1642676037579,0.07739772,42087.0,42085.0,0.059419]
[1642676037779,6.876e-05,42087.0,42085.0,0.059419]
[1642676037977,0.01106876,42087.0,42085.0,0.059419]
[1642676039214,6.876e-05,42087.0,42085.0,0.059419]
[1642676040014,0.012,42087.0,42085.0,0.059419]
[1642676040421,0.07730476,42086.0,42085.0,0.059419]
[1642676041620,0.07730476,42094.0,42085.0,0.059419]
[1642676041928,0.07730476,42086.0,42085.0,0.059419]
[1642676042122,0.01,42086.0,42085.0,0.066419]
[1642676042322,0.08730476,42086.0,42085.0,0.082559]
[1642676042582,0.01,42086.0,42085.0,0.082559]
[1642676042982,0.01,42086.0,42085.0,0.02314]
[1642676043381,0.00104948,42092.0,42085.0,0.01614]
[1642676043779,6.876e-05,42091.0,42085.0,0.01614]
[1642676044078,6.876e-05,42091.0,42085.0,0.02614]
[1642676044487,0.07742322,42091.0,42085.0,0.02614]
[1642676044680,0.28536801,42088.0,42085.0,0.02614]
[1642676044881,0.28536801,42088.0,42085.0,0.01]
[1642676045080,0.07735446,42087.0,42085.0,0.01]
[1642676046082,0.10235446,42087.0,42085.0,0.011]
[1642676046519,0.025,42087.0,42085.0,0.011]
[1642676047319,0.27553616,42091.0,42084.0,0.05]
[1642676047521,0.27553616,42091.0,42083.0,0.059417]
[1642676047720,0.07523772,42090.0,42083.0,0.059417]
[1642676047919,0.07523772,42090.0,42084.0,0.05941389]
[1642676048122,6.876e-05,42091.0,42084.0,0.10941389]
[1642676048320,0.07523772,42089.0,42085.0,0.059412]
[1642676048518,6.876e-05,42091.0,42085.0,0.059412]
[1642676048919,6.876e-05,42091.0,42085.0,0.109412]
[1642676049120,0.07530648,42091.0,42085.0,0.109412]
[1642676049520,6.876e-05,42091.0,42085.0,0.109412]
[1642676050064,0.03806876,42091.0,42085.0,0.112412]
[1642676050263,0.03806876,42091.0,42085.0,0.38347841]
[1642676050464,0.07523772,42090.0,42085.0,0.50229841]
[1642676050664,0.07523772,42090.0,42086.0,0.059409]
[1642676051064,0.07523772,42090.0,42085.0,0.17182]
[1642676051265,0.07523772,42090.0,42085.0,0.16882]
[1642676051666,6.876e-05,42091.0,42085.0,0.16882]
[1642676051866,0.07523772,42089.0,42085.0,0.16882]
[1642676052066,0.038,42090.0,42085.0,0.16982]
[1642676052268,0.07523772,42088.0,42085.0,0.16982]
[1642676052668,0.07523772,42089.0,42085.0,0.16982]
[1642676052868,0.07523772,42087.0,42085.0,0.16982]
[1642676053270,0.07523772,42088.0,42085.0,0.16882]
[1642676053670,6.876e-05,42091.0,42085.0,0.16882]
[1642676053918,6.876e-05,42091.0,42085.0,0.11882]
[1642676054122,0.037,42088.0,42085.0,0.11982]
[1642676054721,0.07523772,42087.0,42085.0,0.11982]
[1642676055125,0.07523772,42087.0,42085.0,0.45745749]
[1642676055319,0.07523772,42087.0,42086.0,0.383756]
[1642676055520,0.037,42088.0,42086.0,0.383756]
[1642676055719,0.037,42088.0,42085.0,0.72935725]
[1642676055921,0.037,42088.0,42086.0,0.443165]
[1642676056122,0.052,42088.0,42086.0,0.448165]
[1642676056322,0.052,42088.0,42087.0,0.27058595]
[1642676056522,0.052,42088.0,42087.0,0.33672595]
[1642676056921,0.052,42088.0,42087.0,0.72048195]
[1642676057784,6.876e-05,42091.0,42089.0,0.059406]
[1642676059382,6.876e-05,42091.0,42090.0,0.383756]
[1642676059581,6.876e-05,42091.0,42090.0,0.70437669]
[1642676060180,0.05206876,42091.0,42090.0,0.70437669]
[1642676060579,0.05206876,42091.0,42090.0,0.72051669]
[1642676061422,6.876e-05,42091.0,42090.0,0.72051669]
[1642676062025,0.00206876,42091.0,42090.0,0.414896]
[1642676062424,0.00206876,42091.0,42090.0,0.015]
[1642676063324,6.876e-05,42091.0,42089.0,0.059406]
[1642676064026,0.02406876,42091.0,42089.0,0.06533198]
[1642676066066,0.00506876,42091.0,42089.0,0.06933198]
[1642676067366,6.876e-05,42091.0,42089.0,0.05933198]
[1642676067765,0.07482322,42091.0,42089.0,0.05933198]
[1642676068170,0.07882322,42091.0,42089.0,0.06933198]
[1642676068367,0.00406876,42091.0,42089.0,0.06933198]
[1642676068571,0.00406876,42091.0,42090.0,0.00121711]
[1642676068835,0.00406876,42091.0,42090.0,1.40521987]
[1642676069030,0.00406876,42091.0,42090.0,1.09901311]
[1642676069430,6.876e-05,42091.0,42090.0,1.09901311]
[1642676069631,6.876e-05,42091.0,42090.0,1.37410549]
[1642676070031,6.876e-05,42091.0,42090.0,1.39310549]
[1642676070234,6.876e-05,42091.0,42090.0,0.79310549]
[1642676070837,0.0742964,42098.0,42092.0,0.059397]
[1642676071031,0.02,42099.0,42093.0,0.3199104]
[1642676071230,0.00010314,42097.0,42093.0,0.3199104]
[1642676071431,0.00010314,42097.0,42094.0,0.44315204]
[1642676071633,8.595e-05,42096.0,42094.0,0.44315204]
[1642676071831,8.595e-05,42096.0,42094.0,0.45929204]
[1642676072030,6.876e-05,42095.0,42094.0,0.53168904]
[1642676072432,0.00012033,42095.0,42094.0,0.53168904]
[1642676073073,0.00012033,42095.0,42094.0,0.412896]
[1642676073273,0.00012033,42095.0,42094.0,0.399896]
[1642676074078,0.00412033,42095.0,42094.0,0.03914]
[1642676074879,0.28842209,42095.0,42094.0,0.03914]
[1642676075078,0.00412033,42095.0,42094.0,0.03914]
[1642676075277,0.00012033,42095.0,42094.0,0.01614]
[1642676076085,0.00812033,42095.0,42094.0,0.03014]
[1642676077316,0.00012033,42095.0,42094.0,0.01614]
[1642676078117,0.00812033,42095.0,42094.0,0.03214]
[1642676079320,0.00012033,42095.0,42094.0,0.01614]
[1642676080272,0.00912033,42095.0,42094.0,0.03414]
[1642676080877,0.31015058,42095.0,42094.0,0.03414]
[1642676081476,0.30115058,42095.0,42087.0,0.3072995]
[1642676081674,0.30115058,42095.0,42087.0,0.00109274]
[1642676081675,0.0479,42094.0,42087.0,0.00109274]
[1642676082274,0.0579,42094.0,42087.0,0.00109274]
[1642676082475,0.0579,42094.0,42087.0,0.30620676]
[1642676082676,0.0579,42094.0,42087.0,0.00109268]
[1642676083074,0.0579,42094.0,42087.0,0.36671044]
[1642676083473,0.0479,42094.0,42087.0,0.36671044]
[1642676083674,0.0479,42094.0,42087.0,0.059411]
[1642676083926,0.0479,42094.0,42087.0,0.33812656]
[1642676084120,0.0479,42094.0,42087.0,0.33289578]
[1642676084520,0.0479,42094.0,42089.0,0.01614]
[1642676085221,0.00120549,42095.0,42089.0,0.01614]
[1642676086020,0.00012033,42095.0,42089.0,0.01614]
[1642676086220,0.00220551,42095.0,42089.0,0.01614]
[1642676087222,0.00112033,42095.0,42089.0,0.01614]
[1642676087680,0.00220551,42095.0,42089.0,0.01614]
[1642676088083,0.00120551,42095.0,42089.0,0.01614]
[1642676088282,0.00620551,42095.0,42089.0,0.01614]
[1642676088484,0.00512033,42095.0,42089.0,0.01614]
[1642676088782,0.00620499,42095.0,42089.0,0.01614]
[1642676089786,0.00012033,42095.0,42089.0,0.01614]
[1642676089984,0.00120499,42095.0,42089.0,0.01614]
[1642676090186,0.00520499,42095.0,42089.0,0.01614]
[1642676091528,0.00120499,42095.0,42089.0,0.01614]
[1642676092023,0.00012033,42095.0,42089.0,0.01614]
[1642676092225,0.00520504,42095.0,42087.0,0.33289157]
[1642676092824,0.00520504,42095.0,42089.0,0.01614]
[1642676093226,0.00412033,42095.0,42089.0,0.01614]
[1642676093426,0.00012033,42095.0,42089.0,0.01614]
[1642676093626,0.00120504,42095.0,42089.0,0.01614]
[1642676094129,0.00220504,42095.0,42089.0,0.01614]
[1642676094627,0.00112033,42095.0,42089.0,0.01614]
[1642676094826,0.00220504,42095.0,42089.0,0.01614]
[1642676095069,0.00220504,42095.0,42089.0,0.01606762]
[1642676095569,0.00120504,42095.0,42089.0,0.01606762]
[1642676095770,0.00012033,42095.0,42089.0,0.01606762]
[1642676095970,0.00120504,42095.0,42089.0,0.01606762]
[1642676096169,0.01020504,42095.0,42089.0,0.01606762]
[1642676096870,0.00912033,42095.0,42089.0,0.01606762]
[1642676097070,0.01020504,42095.0,42089.0,0.01606762]
[1642676097471,0.00120504,42095.0,42089.0,0.01606762]
[1642676098071,0.00012033,42095.0,42089.0,0.07547032]
[1642676098371,0.01120504,42095.0,42090.0,0.059403]
[1642676098574,0.01120504,42095.0,42091.0,0.059402]
[1642676098821,0.01120504,42095.0,42092.0,0.13486962]
[1642676099023,0.01120504,42095.0,42092.0,0.18486962]
[1642676099229,0.01012033,42095.0,42092.0,0.18486962]
[1642676099422,0.00012033,42095.0,42092.0,0.18486962]
[1642676100026,0.00012033,42095.0,42094.0,0.01606762]
[1642676100226,0.00912033,42095.0,42094.0,0.01606762]
[1642676101427,0.00012033,42095.0,42094.0,0.01606762]
[1642676101832,0.00012033,42095.0,42089.0,0.01606762]
[1642676102227,0.00712033,42095.0,42089.0,0.01606762]
[1642676102430,0.00712033,42095.0,42089.0,0.07548062]
[1642676102674,0.07770019,42094.0,42089.0,0.07548062]
[1642676103278,0.24820504,42095.0,42089.0,0.07548062]
[1642676103476,0.24120504,42095.0,42089.0,0.07548062]
[1642676104076,0.24012033,42095.0,42089.0,0.07548062]
[1642676104378,0.24820504,42095.0,42089.0,0.07548062]
[1642676105175,0.24820504,42095.0,42090.0,0.05]
[1642676105375,0.24712033,42095.0,42090.0,0.05]
[1642676105675,0.24120504,42095.0,42090.0,0.05]
[1642676106076,0.24120504,42095.0,42091.0,0.059402]
[1642676106329,0.24520504,42095.0,42091.0,0.059402]
[1642676106527,0.24412033,42095.0,42091.0,0.059402]
[1642676106727,0.24520508,42095.0,42091.0,0.059402]
[1642676106931,0.24520508,42095.0,42091.0,0.058102]
[1642676107828,0.24120508,42095.0,42091.0,0.058102]
[1642676108328,0.24320508,42095.0,42091.0,0.058102]
[1642676108729,0.24320508,42095.0,42092.0,0.01606762]
[1642676108930,0.24212033,42095.0,42093.0,0.059398]
[1642676109133,0.24320508,42095.0,42094.0,0.01606762]
[1642676109434,0.24120508,42095.0,42094.0,0.01606762]
[1642676110074,0.24012033,42095.0,42094.0,0.01606762]
[1642676110277,0.24512033,42095.0,42094.0,0.28891857]
[1642676111576,0.24012033,42095.0,42094.0,0.28891857]
[1642676112174,0.24412033,42095.0,42094.0,0.28891857]
[1642676112774,0.24412033,42095.0,42094.0,0.01606762]
[1642676113173,0.24334968,42095.0,42094.0,0.01606762]
[1642676113375,0.24334968,42095.0,42094.0,0.01613638]
[1642676113578,0.23934968,42095.0,42094.0,0.01613638]
[1642676114039,0.31704929,42095.0,42094.0,6.876e-05]
[1642676114238,0.24434968,42095.0,42094.0,6.876e-05]
[1642676114439,0.32204983,42095.0,42094.0,0.01606762]
[1642676114837,0.24434968,42095.0,42094.0,0.01606762]
[1642676116239,0.24534968,42095.0,42094.0,0.01606762]
[1642676117438,0.23934968,42095.0,42094.0,0.01606762]
[1642676118375,0.24534968,42095.0,42094.0,0.01606762]
[1642676119474,0.23934968,42095.0,42094.0,0.01606762]
[1642676120276,0.24534968,42095.0,42094.0,0.01606762]
[1642676121526,0.23934968,42095.0,42094.0,0.01606762]
[1642676122229,0.24534968,42095.0,42094.0,0.01606762]
[1642676123430,0.23934968,42095.0,42094.0,0.01606762]
[1642676124231,0.24534968,42095.0,42094.0,0.01335157]
[1642676125580,0.23934968,42095.0,42094.0,0.01335157]
[1642676126179,0.24534968,42095.0,42094.0,0.01335157]
[1642676127581,0.23934968,42095.0,42094.0,0.01335157]
[1642676128379,0.24434968,42095.0,42094.0,0.01335157]
[1642676129524,0.23934968,42095.0,42094.0,0.01335157]
[1642676130327,0.24234968,42095.0,42094.0,0.01335157]
[1642676131526,0.23934968,42095.0,42094.0,0.01335157]
[1642676132327,0.24434968,42095.0,42094.0,0.01335157]
[1642676132769,0.24273167,42095.0,42094.0,0.01335157]
[1642676133573,0.23773167,42095.0,42094.0,0.01335157]
[1642676134371,0.24173167,42095.0,42094.0,0.01335157]
[1642676135672,0.23773167,42095.0,42094.0,0.01335157]
[1642676135872,0.23773167,42095.0,42094.0,0.39710757]
[1642676136330,0.24173167,42095.0,42094.0,0.39710757]
[1642676137533,0.23773167,42095.0,42094.0,0.39710757]
[1642676138234,0.23973167,42095.0,42094.0,0.66542146]
[1642676138836,0.17501135,42095.0,42094.0,0.66542146]
[1642676139434,0.17301135,42095.0,42094.0,0.66542146]
[1642676139634,0.00108477,42097.0,42094.0,0.71332146]
[1642676139835,0.00108477,42097.0,42094.0,0.83209946]
[1642676140073,0.02,42099.0,42096.0,0.22384129]
[1642676140274,0.02,42099.0,42097.0,0.65814182]
[1642676140275,0.00108478,42098.0,42097.0,0.65814182]
[1642676140473,0.00108478,42098.0,42097.0,0.67149339]
[1642676141274,0.02,42099.0,42097.0,0.67149339]
[1642676141673,0.02,42099.0,42098.0,0.2703307]
[1642676141873,0.02,42099.0,42098.0,0.6540867]
[1642676142274,0.041,42099.0,42098.0,0.67243827]
[1642676143476,0.041,42099.0,42098.0,0.66743827]
[1642676143677,0.02,42099.0,42098.0,0.66743827]
[1642676144328,0.031,42099.0,42098.0,0.67443827]
[1642676144529,0.031,42099.0,42098.0,0.6757014]
[1642676145627,0.02,42099.0,42098.0,0.6687014]
[1642676146028,0.31193866,42107.0,42102.0,0.05938361]
[1642676146230,0.10358079,42111.0,42102.0,0.05938361]
[1642676146428,0.07620488,42106.0,42102.0,0.05938361]
[1642676146828,0.00012034,42105.0,42104.0,0.01335157]
[1642676148080,0.45994369,42105.0,42104.0,0.01335157]
[1642676148281,0.08618769,42105.0,42104.0,0.03535157]
[1642676148682,0.08618769,42105.0,42104.0,0.30144248]
[1642676148683,0.01012034,42105.0,42104.0,0.30144248]
[1642676149482,0.20012034,42106.0,42104.0,0.01335157]
[1642676150082,0.20012034,42106.0,42104.0,0.27073922]
[1642676150482,0.20512034,42106.0,42104.0,0.32173922]
[1642676150681,0.20512034,42106.0,42105.0,0.27522602]
[1642676151729,0.20012034,42106.0,42105.0,0.27522602]
[1642676152330,0.20012034,42106.0,42105.0,0.31522602]
[1642676152933,0.15012034,42106.0,42105.0,0.31522602]
[1642676153634,0.15012034,42106.0,42105.0,0.27522602]
[1642676154438,0.15112034,42106.0,42105.0,0.31822602]
[1642676154838,0.15112034,42106.0,42105.0,0.043]
[1642676156279,0.15112034,42106.0,42105.0,0.042]
[1642676157679,0.15012034,42106.0,42103.0,0.11999207]
[1642676158280,0.15012034,42106.0,42103.0,0.16299207]
[1642676159228,0.00107411,42107.0,42103.0,0.16299207]
[1642676159430,0.26190133,42111.0,42103.0,0.16299207]
[1642676159623,0.00107411,42107.0,42103.0,0.11999207]
[1642676159823,0.00107411,42107.0,42104.0,0.383756]
[1642676160225,0.00107411,42107.0,42105.0,0.26778876]
[1642676160425,0.00107411,42107.0,42106.0,0.01335157]
[1642676160625,0.42429572,42114.0,42107.0,0.059379]
[1642676160626,0.42,42114.0,42107.0,0.059379]
[1642676160827,0.00107412,42108.0,42107.0,0.11875768]
[1642676161830,0.68905358,42114.0,42107.0,0.11875768]
[1642676162026,0.00107415,42110.0,42107.0,0.11875768]
[1642676162426,0.028,42109.0,42107.0,0.095379]
[1642676163677,0.02,42109.0,42107.0,0.059379]
[1642676164482,0.029,42109.0,42107.0,0.095379]
[1642676165680,0.02,42109.0,42107.0,0.059379]
[1642676166079,0.00510742,42109.0,42107.0,0.059379]
[1642676166323,0.00510742,42109.0,42107.0,0.095379]
[1642676166525,0.01410742,42109.0,42107.0,0.095379]
[1642676167723,0.00510742,42109.0,42107.0,0.059379]
[1642676168324,0.01110742,42109.0,42107.0,0.093379]
[1642676169426,0.01110742,42109.0,42107.0,0.034]
[1642676169632,0.00510742,42109.0,42106.0,0.01335157]
[1642676170377,0.01410742,42109.0,42106.0,0.043]
[1642676171577,0.01410742,42109.0,42103.0,0.38394157]
[1642676171578,0.01410742,42109.0,42103.0,0.44332457]
[1642676171779,0.00510742,42109.0,42104.0,0.05]
[1642676172281,0.00510742,42109.0,42105.0,0.05937753]
[1642676172678,0.00618156,42109.0,42105.0,0.05937753]
[1642676172880,0.00618156,42109.0,42105.0,0.0727291]
[1642676173380,0.00618156,42109.0,42106.0,0.2790042]
[1642676173680,0.00510742,42109.0,42106.0,0.2790042]
[1642676173929,0.00510742,42109.0,42107.0,0.383756]
[1642676174230,0.00510742,42109.0,42108.0,0.27118399]
[1642676174431,0.00510742,42109.0,42108.0,0.28453556]
[1642676174432,0.01110742,42109.0,42108.0,0.28453556]
[1642676174633,0.01117618,42109.0,42108.0,0.66829156]
[1642676174836,0.01117618,42109.0,42108.0,0.45647657]
[1642676175032,0.01117618,42109.0,42108.0,0.74043428]
[1642676175232,0.01117618,42109.0,42108.0,0.77745158]
[1642676175532,0.01117618,42109.0,42108.0,1.06700158]
[1642676175732,0.00517618,42109.0,42108.0,0.96700158]
[1642676175935,0.00107416,42111.0,42109.0,0.87808894]
[1642676176135,0.9695,42115.0,42110.0,0.731656]
[1642676176333,0.9695,42115.0,42111.0,0.06066111]
[1642676176533,8.595e-05,42114.0,42112.0,0.0479]
[1642676176731,8.595e-05,42114.0,42113.0,0.28423136]
[1642676176932,0.42,42115.0,42113.0,0.33213136]
[1642676177133,0.42,42115.0,42114.0,0.27370796]
[1642676177575,0.42010314,42115.0,42114.0,0.28680185]
[1642676177772,0.42010314,42115.0,42114.0,0.33680185]
[1642676177973,0.42010314,42115.0,42114.0,0.73680185]
[1642676178170,0.42010314,42115.0,42114.0,1.22055785]
[1642676178369,0.42010314,42115.0,42114.0,1.24755785]
[1642676178571,0.00010314,42115.0,42114.0,1.40045942]
[1642676178771,0.00010314,42115.0,42114.0,1.44835942]
[1642676179270,0.00010314,42115.0,42114.0,1.50771542]
[1642676179671,0.00010314,42115.0,42114.0,1.48071542]
[1642676180472,0.00010314,42115.0,42114.0,1.54471542]
[1642676181339,2.0,42116.0,42115.0,1.41786142]
[1642676181340,1.67728798,42116.0,42115.0,1.41786142]
[1642676181536,1.67728798,42116.0,42115.0,2.82598856]
[1642676181737,0.01,42119.0,42117.0,0.118691]
[1642676181937,0.0001,42119.0,42118.0,2.0213173]
[1642676182136,0.0001,42119.0,42118.0,2.6890753]
[1642676182335,0.00016876,42119.0,42118.0,2.58979703]
[1642676182541,0.00016876,42119.0,42118.0,2.60979703]
[1642676182736,0.00016876,42119.0,42118.0,2.61558908]
[1642676183135,0.00016876,42119.0,42118.0,2.60979703]
[1642676183336,0.00016876,42119.0,42118.0,2.72848903]
[1642676183739,0.00016876,42119.0,42118.0,1.46948903]
[1642676184337,0.00016876,42119.0,42118.0,1.44948903]
[1642676184537,0.00016876,42119.0,42118.0,1.50248903]
[1642676185373,0.00016876,42119.0,42118.0,1.173072]
[1642676185774,0.00016876,42119.0,42118.0,1.423072]
[1642676185974,0.00016876,42119.0,42118.0,1.370072]
[1642676186376,0.00016876,42119.0,42118.0,1.413072]
[1642676186676,0.00016876,42119.0,42118.0,1.163072]
[1642676186876,0.00016876,42119.0,42118.0,1.04438]
[1642676187078,0.00016876,42119.0,42118.0,1.22693672]
[1642676187277,0.00016876,42119.0,42118.0,1.04438]
[1642676187681,0.00016876,42119.0,42118.0,1.00138]
[1642676187877,0.00016876,42119.0,42118.0,1.05138]
[1642676188581,0.00016876,42119.0,42118.0,1.09338]
[1642676188824,0.00016876,42119.0,42118.0,1.39338]
[1642676189026,0.00016876,42119.0,42118.0,1.09338]
[1642676189821,0.00016876,42119.0,42118.0,1.35138]
[1642676190023,0.00016876,42119.0,42118.0,1.05138]
[1642676190327,0.00016876,42119.0,42118.0,1.36378001]
[1642676190524,0.01,42129.0,42120.0,0.34424739]
[1642676190726,0.01,42129.0,42123.0,0.05934371]
[1642676190935,0.00015471,42128.0,42124.0,0.32871412]
[1642676191122,0.00015471,42128.0,42124.0,0.47871412]
[1642676191326,0.00013752,42127.0,42124.0,0.52871412]
[1642676191524,0.00013752,42127.0,42125.0,0.01335157]
[1642676191724,0.00012033,42126.0,42125.0,0.51125157]
[1642676191925,0.00012033,42126.0,42125.0,0.44500757]
[1642676192125,0.00012033,42126.0,42125.0,0.71399012]
[1642676192576,0.00012033,42126.0,42125.0,0.73299012]
[1642676193178,0.00012033,42126.0,42125.0,0.83299012]
[1642676193378,0.00012033,42126.0,42125.0,0.89486012]
[1642676193779,0.00012033,42126.0,42125.0,1.01541012]
[1642676194080,0.00012033,42126.0,42125.0,1.0166605]
[1642676194480,0.00012033,42126.0,42125.0,1.35902374]
[1642676194681,0.00012033,42126.0,42125.0,1.77902374]
[1642676195080,0.00012033,42126.0,42125.0,1.82614148]
[1642676195682,0.18533738,42130.0,42126.0,1.248089]
[1642676195879,0.18533738,42130.0,42127.0,0.107241]
[1642676196081,0.18533738,42130.0,42129.0,0.47308887]
[1642676196324,0.18533738,42130.0,42129.0,1.01389066]
[1642676196525,0.18540614,42130.0,42129.0,1.11517589]
[1642676198531,0.18540614,42130.0,42129.0,0.86535167]
[1642676199834,0.18540614,42130.0,42129.0,0.83335167]
[1642676200476,0.18540614,42130.0,42129.0,0.86435167]
[1642676201477,0.18540614,42130.0,42129.0,0.98554545]
[1642676201879,0.18540614,42130.0,42129.0,0.95454545]
[1642676202579,0.18540614,42130.0,42129.0,0.98654545]
[1642676203927,0.18540614,42130.0,42129.0,1.22256421]
[1642676204527,0.18540614,42130.0,42129.0,1.25356421]
[1642676204730,0.18540614,42130.0,42129.0,1.67356421]
[1642676206330,0.18540614,42130.0,42129.0,1.64256421]
[1642676206631,0.18540614,42130.0,42129.0,1.67356421]
[1642676207031,0.18540614,42130.0,42129.0,1.03245658]
[1642676207233,0.18540614,42130.0,42129.0,0.96930135]
[1642676207578,0.18540614,42130.0,42129.0,0.414756]
[1642676207776,0.18540614,42130.0,42128.0,0.42]
[1642676208177,0.18540614,42130.0,42126.0,0.01187]
[1642676208578,0.18940614,42130.0,42128.0,0.055]
[1642676208780,0.19035388,42130.0,42128.0,0.055]
[1642676209677,0.18540614,42130.0,42123.0,0.43335157]
[1642676209879,0.18540614,42130.0,42124.0,0.21465954]
[1642676210481,0.18540614,42130.0,42124.0,0.27965954]
[1642676211181,0.18635384,42130.0,42124.0,0.27965954]
[1642676211834,0.18635384,42130.0,42124.0,0.21465954]
[1642676212131,0.18540614,42130.0,42124.0,0.21465954]
[1642676212330,0.18635384,42130.0,42124.0,0.21465954]
[1642676212531,0.18635384,42130.0,42124.0,0.26965954]
[1642676212731,0.18635384,42130.0,42125.0,0.27316344]
[1642676212932,0.18635384,42130.0,42126.0,0.383756]
[1642676213131,0.18635384,42130.0,42124.0,0.055]
[1642676213334,0.30841491,42129.0,42124.0,0.055]
[1642676213638,0.316162,42129.0,42124.0,0.055]
[1642676213831,0.316162,42129.0,42123.0,0.42]
[1642676214239,0.66572418,42129.0,42123.0,0.42]
[1642676214435,0.32572408,42127.0,42123.0,0.42]
[1642676214634,0.32572408,42127.0,42123.0,0.482]
[1642676215797,0.27584434,42126.0,42123.0,0.42]
[1642676215999,0.32572408,42127.0,42123.0,0.42]
[1642676216597,0.32572408,42127.0,42123.0,0.487]
[1642676217197,0.60981511,42127.0,42123.0,0.487]
[1642676217798,0.60981511,42127.0,42123.0,0.41992497]
[1642676218599,0.60981511,42127.0,42123.0,0.48792497]
[1642676219827,0.60981511,42127.0,42123.0,0.41992497]
[1642676220028,0.18635377,42130.0,42123.0,0.41992497]
[1642676220231,0.18635377,42130.0,42123.0,0.46992497]
[1642676220628,0.18635377,42130.0,42123.0,0.53692497]
[1642676220629,0.18540614,42130.0,42123.0,0.53692497]
[1642676220830,0.18635382,42130.0,42123.0,0.53692497]
[1642676221432,0.18635382,42130.0,42124.0,0.2718923]
[1642676221629,0.18635382,42130.0,42124.0,0.27267181]
[1642676221833,0.18540614,42130.0,42125.0,0.383756]
[1642676222031,0.18635382,42130.0,42125.0,0.433756]
[1642676222679,0.18635382,42130.0,42125.0,0.502756]
[1642676222878,0.18540614,42130.0,42125.0,0.502756]
[1642676223082,0.18635386,42130.0,42125.0,0.502756]
[1642676223279,0.18635386,42130.0,42125.0,0.51610757]
[1642676223480,0.18635386,42130.0,42125.0,0.452756]
[1642676223779,0.18635386,42130.0,42125.0,0.383756]
[1642676224083,0.18635386,42130.0,42123.0,0.46992497]
[1642676224477,0.18635386,42130.0,42123.0,0.53192497]
[1642676224681,0.18635386,42130.0,42123.0,0.48192497]
[1642676225277,0.18540614,42130.0,42123.0,0.48192497]
[1642676225477,0.18635382,42130.0,42123.0,0.48192497]
[1642676225878,0.18635382,42130.0,42123.0,0.41992497]
[1642676226528,0.46995803,42130.0,42123.0,0.47692497]
[1642676226733,0.47090571,42130.0,42123.0,0.47692497]
[1642676227728,0.46695803,42130.0,42123.0,0.41992497]
[1642676227929,0.46790571,42130.0,42123.0,0.41992497]
[1642676228533,0.47390571,42130.0,42123.0,0.46892497]
[1642676228930,0.47295803,42130.0,42123.0,0.46892497]
[1642676229131,2.26818206,42129.0,42123.0,0.46892497]
[1642676229335,0.383756,42128.0,42123.0,0.46892497]
[1642676229729,0.383756,42128.0,42123.0,0.41992497]
[1642676229930,0.58664746,42130.0,42123.0,0.41992497]
[1642676230182,0.58569978,42130.0,42123.0,0.41992497]
[1642676230383,0.58664743,42130.0,42123.0,0.41992497]
[1642676230582,0.3509646,42126.0,42123.0,0.41992497]
[1642676231783,0.46790564,42130.0,42123.0,0.41992497]
[1642676232586,0.46695803,42130.0,42123.0,0.41992497]
[1642676232784,0.32655014,42129.0,42123.0,0.41992497]
[1642676234932,0.38197193,42129.0,42123.0,0.41992497]
[1642676236331,0.32655014,42129.0,42123.0,0.41992497]
[1642676238581,0.004,42129.0,42123.0,0.41992497]
[1642676239788,0.28945683,42129.0,42123.0,0.41992497]
[1642676245086,0.28945683,42129.0,42123.0,0.41986319]
[1642676245087,0.34890298,42129.0,42123.0,0.41986319]
[1642676245284,0.00122142,42127.0,42123.0,0.41986319]
[1642676245484,0.0479,42126.0,42123.0,0.41986319]
[1642676246685,0.0579,42126.0,42123.0,0.41986319]
[1642676247085,0.37449529,42124.0,42123.0,0.41986319]
[1642676247386,0.62431544,42124.0,42123.0,0.41986319]
[1642676247591,1.00807144,42124.0,42123.0,0.41986319]
[1642676248588,1.02007144,42124.0,42123.0,0.41986319]
[1642676248834,1.07945244,42124.0,42123.0,0.41986319]
[1642676249036,1.02007144,42124.0,42123.0,0.41986319]
[1642676249536,1.02007144,42124.0,42123.0,0.42]
[1642676249735,0.81815129,42124.0,42123.0,0.42]
[1642676249935,0.80615129,42124.0,42123.0,0.42]
[1642676250140,1.04615129,42124.0,42123.0,0.42]
[1642676250335,1.24945746,42124.0,42123.0,0.42]
[1642676250641,1.05815129,42124.0,42123.0,0.42]
[1642676251434,1.26404618,42124.0,42123.0,0.42]
[1642676251634,1.05815129,42124.0,42123.0,0.42]
[1642676251834,1.04615129,42124.0,42123.0,0.42]
[1642676252584,1.05715129,42124.0,42123.0,0.42]
[1642676253181,0.682656,42124.0,42123.0,0.42]
[1642676253381,0.634756,42124.0,42123.0,0.42]
[1642676253982,0.623756,42124.0,42123.0,0.42]
[1642676254681,0.632756,42124.0,42123.0,0.428]
[1642676255685,0.73144428,42124.0,42123.0,0.428]
[1642676255983,0.7237642,42124.0,42123.0,0.42]
[1642676256183,0.623756,42124.0,42123.0,0.42]
[1642676256635,0.633756,42124.0,42123.0,0.436]
[1642676257231,0.79210966,42124.0,42123.0,0.436]
[1642676257429,0.73273066,42124.0,42123.0,0.436]
[1642676257629,0.633756,42124.0,42123.0,0.436]
[1642676257833,0.623756,42124.0,42123.0,0.42]
[1642676258629,0.636756,42124.0,42123.0,0.42]
[1642676259930,0.623756,42124.0,42123.0,0.42]
[1642676260681,0.638756,42124.0,42123.0,0.42]
[1642676261482,0.95535571,42124.0,42123.0,0.42]
[1642676261881,0.94035571,42124.0,42123.0,0.42]
[1642676262682,0.95535571,42124.0,42123.0,0.42]
[1642676264030,0.94035571,42124.0,42123.0,0.42]
[1642676264432,0.99035571,42124.0,42123.0,0.42]